[Event "*** Titled Tuesday Blitz"]
[Site "Chess.com"]
[Date "2021.02.02"]
[Round "3"]
[White "fish7728"]
[Black "IMJonathanCarlstedt"]
[Result "0-1"]
[WhiteElo "2160"]
[BlackElo "2485"]
[TimeControl "180+1"]
[EndTime "10:31:50 PST"]
[Termination "IMJonathanCarlstedt won on time"]

1. d4 {[%clk 0:03:00.9]} 1... Nf6 {[%clk 0:02:57.6]} 2. c4 {[%clk 0:03:00.9]}
2... e6 {[%clk 0:02:57.9]} 3. Nc3 {[%clk 0:03:01.1]} 3... Bb4 {[%clk 0:02:57.2]}
4. f3 {[%clk 0:03:01.6]} 4... O-O {[%clk 0:02:55.3]} 5. e4 {[%clk 0:02:56.3]}
5... d6 {[%clk 0:02:51.4]} 6. Bd2 {[%clk 0:02:51.7]} 6... e5 {[%clk 0:02:50.9]}
7. d5 {[%clk 0:02:51.5]} 7... Nh5 {[%clk 0:02:49.2]} 8. Nge2 {[%clk 0:02:38.6]}
8... a5 {[%clk 0:02:45.6]} 9. Qc2 {[%clk 0:02:32.3]} 9... Na6 {[%clk 0:02:41.3]}
10. g3 {[%clk 0:02:29.8]} 10... f5 {[%clk 0:02:31.9]} 11. O-O-O {[%clk
0:02:26.7]} 11... Bd7 {[%clk 0:02:11.3]} 12. Bg2 {[%clk 0:02:13]} 12... Nc5
{[%clk 0:02:09.5]} 13. Rhf1 {[%clk 0:02:03.3]} 13... a4 {[%clk 0:02:02.5]} 14.
exf5 {[%clk 0:01:52.4]} 14... Bxf5 {[%clk 0:01:43.5]} 15. Ne4 {[%clk 0:01:51.9]}
15... Bxd2+ {[%clk 0:01:42.6]} 16. Qxd2 {[%clk 0:01:49.4]} 16... Nf6 {[%clk
0:01:33.1]} 17. Nxc5 {[%clk 0:01:23]} 17... dxc5 {[%clk 0:01:32.6]} 18. Nc3
{[%clk 0:01:23.4]} 18... b6 {[%clk 0:01:16.3]} 19. Rfe1 {[%clk 0:01:19.9]} 19...
Re8 {[%clk 0:01:13.4]} 20. g4 {[%clk 0:00:58.5]} 20... Bg6 {[%clk 0:01:07.8]}
21. h4 {[%clk 0:00:58.1]} 21... a3 {[%clk 0:00:57.4]} 22. b3 {[%clk 0:00:57.5]}
22... e4 {[%clk 0:00:48.3]} 23. g5 {[%clk 0:00:50]} 23... exf3 {[%clk
0:00:42.9]} 24. Bxf3 {[%clk 0:00:38.9]} 24... Nd7 {[%clk 0:00:42.5]} 25. Bg4
{[%clk 0:00:37.3]} 25... Ne5 {[%clk 0:00:39.3]} 26. Rxe5 {[%clk 0:00:36.3]}
26... Rxe5 {[%clk 0:00:38]} 27. Be6+ {[%clk 0:00:36.6]} 27... Kh8 {[%clk
0:00:36.5]} 28. Ne2 {[%clk 0:00:27.5]} 28... Qd6 {[%clk 0:00:31.3]} 29. Nf4
{[%clk 0:00:24.1]} 29... Rf8 {[%clk 0:00:21.5]} 30. h5 {[%clk 0:00:21.9]} 30...
Be4 {[%clk 0:00:15.1]} 31. Ng6+ {[%clk 0:00:08.3]} 31... Bxg6 {[%clk 0:00:14.1]}
32. hxg6 {[%clk 0:00:09.2]} 32... Rxe6 {[%clk 0:00:13.9]} 33. dxe6 {[%clk
0:00:09]} 33... Qxe6 {[%clk 0:00:14.8]} 34. gxh7 {[%clk 0:00:08.2]} 34... Qe5
{[%clk 0:00:15.2]} 35. Qc2 {[%clk 0:00:07]} 35... Qxg5+ {[%clk 0:00:14.6]} 36.
Kb1 {[%clk 0:00:06.7]} 36... Qf6 {[%clk 0:00:10.5]} 37. Rc1 {[%clk 0:00:04.4]}
37... g5 {[%clk 0:00:08.3]} 38. Qc3 {[%clk 0:00:03.6]} 38... Qxc3 {[%clk
0:00:07.7]} 39. Rxc3 {[%clk 0:00:04.3]} 39... Kxh7 {[%clk 0:00:08.3]} 40. Re3
{[%clk 0:00:02.6]} 40... Kg6 {[%clk 0:00:06.1]} 41. Re7 {[%clk 0:00:02]} 41...
Rf7 {[%clk 0:00:06.3]} 42. Re6+ {[%clk 0:00:01.9]} 42... Kf5 {[%clk 0:00:06.5]}
43. Rc6 {[%clk 0:00:01.5]} 43... Rg7 {[%clk 0:00:06.2]} 44. Kc1 {[%clk
0:00:01.8]} 44... g4 {[%clk 0:00:06.4]} 45. Kd1 {[%clk 0:00:02.5]} 45... g3
{[%clk 0:00:06.8]} 46. Ke1 {[%clk 0:00:03.4]} 46... g2 {[%clk 0:00:07.1]} 0-1

[Event "*** Titled Tuesday Blitz"]
[Site "Chess.com"]
[Date "2021.02.02"]
[Round "3"]
[White "noblerone"]
[Black "OhanyanEminChess"]
[Result "0-1"]
[WhiteElo "2424"]
[BlackElo "2650"]
[TimeControl "180+1"]
[EndTime "10:31:52 PST"]
[Termination "OhanyanEminChess won on time"]

1. d4 {[%clk 0:03:00.9]} 1... d5 {[%clk 0:02:56.8]} 2. Nf3 {[%clk 0:03:00.5]}
2... Nf6 {[%clk 0:02:56.7]} 3. Bg5 {[%clk 0:03:01]} 3... Bf5 {[%clk 0:02:56.7]}
4. e3 {[%clk 0:02:59.1]} 4... Nbd7 {[%clk 0:02:56.4]} 5. c4 {[%clk 0:02:59.3]}
5... e6 {[%clk 0:02:56.5]} 6. Nc3 {[%clk 0:02:59.4]} 6... c6 {[%clk 0:02:54.4]}
7. Qb3 {[%clk 0:02:58.8]} 7... Qb6 {[%clk 0:02:53.2]} 8. c5 {[%clk 0:02:58.9]}
8... Qxb3 {[%clk 0:02:45.5]} 9. axb3 {[%clk 0:02:59.8]} 9... a6 {[%clk
0:02:44.4]} 10. b4 {[%clk 0:02:59.3]} 10... Ne4 {[%clk 0:02:44.4]} 11. Bf4
{[%clk 0:02:52.4]} 11... Rc8 {[%clk 0:02:19]} 12. h3 {[%clk 0:02:51]} 12... f6
{[%clk 0:02:18.8]} 13. Be2 {[%clk 0:02:46]} 13... g5 {[%clk 0:02:17.2]} 14. Bh2
{[%clk 0:02:45.1]} 14... h6 {[%clk 0:02:17.8]} 15. O-O {[%clk 0:02:24.9]} 15...
Be7 {[%clk 0:02:14.4]} 16. Nxe4 {[%clk 0:02:24]} 16... Bxe4 {[%clk 0:02:13.8]}
17. Nd2 {[%clk 0:02:24.5]} 17... Bg6 {[%clk 0:02:11.8]} 18. Nb3 {[%clk 0:02:21]}
18... Bd8 {[%clk 0:01:17.5]} 19. Na5 {[%clk 0:02:10.6]} 19... Bxa5 {[%clk
0:01:17.2]} 20. bxa5 {[%clk 0:02:11.5]} 20... e5 {[%clk 0:01:14.1]} 21. Ra3
{[%clk 0:01:55.8]} 21... Ke7 {[%clk 0:00:36]} 22. Rb3 {[%clk 0:01:44.9]} 22...
Rc7 {[%clk 0:00:33.5]} 23. Bg4 {[%clk 0:01:34]} 23... f5 {[%clk 0:00:25.2]} 24.
Be2 {[%clk 0:01:23.5]} 24... Ke6 {[%clk 0:00:24.3]} 25. Ra1 {[%clk 0:01:02.7]}
25... f4 {[%clk 0:00:22.1]} 26. Re1 {[%clk 0:00:39.9]} 26... fxe3 {[%clk
0:00:14.3]} 27. fxe3 {[%clk 0:00:38.8]} 27... Rf8 {[%clk 0:00:13.8]} 28. Rf1
{[%clk 0:00:30.5]} 28... Rxf1+ {[%clk 0:00:13]} 29. Kxf1 {[%clk 0:00:31.4]}
29... Be4 {[%clk 0:00:10.3]} 30. Bh5 {[%clk 0:00:25.2]} 30... Bc2 {[%clk
0:00:09.8]} 31. Rb4 {[%clk 0:00:15.6]} 31... Bd3+ {[%clk 0:00:10]} 32. Kf2
{[%clk 0:00:15.8]} 32... Nf6 {[%clk 0:00:07.3]} 33. Be2 {[%clk 0:00:12.5]} 33...
Ne4+ {[%clk 0:00:06.8]} 34. Ke1 {[%clk 0:00:11.4]} 34... Bb5 {[%clk 0:00:04.4]}
35. Bxe5 {[%clk 0:00:11]} 35... Rf7 {[%clk 0:00:03.9]} 36. Bf3 {[%clk
0:00:09.8]} 36... h5 {[%clk 0:00:02.9]} 37. Rb3 {[%clk 0:00:04]} 37... Ke7
{[%clk 0:00:03]} 38. Bxe4 {[%clk 0:00:02.4]} 38... dxe4 {[%clk 0:00:03.9]} 39.
Ra3 {[%clk 0:00:02.8]} 39... Ke6 {[%clk 0:00:04]} 40. Kd2 {[%clk 0:00:02.1]}
40... Rf2+ {[%clk 0:00:03.5]} 41. Kc3 {[%clk 0:00:02.6]} 41... Kd5 {[%clk
0:00:04.1]} 42. g3 {[%clk 0:00:02.3]} 42... Rh2 {[%clk 0:00:03]} 43. h4 {[%clk
0:00:01.4]} 43... g4 {[%clk 0:00:03.6]} 44. Bf4 {[%clk 0:00:01.2]} 44... Re2
{[%clk 0:00:04.4]} 0-1

[Event "*** Titled Tuesday Blitz"]
[Site "Chess.com"]
[Date "2021.02.02"]
[Round "3"]
[White "Love_craft"]
[Black "Michaelson_11"]
[Result "1-0"]
[WhiteElo "2503"]
[BlackElo "2263"]
[TimeControl "180+1"]
[EndTime "10:31:52 PST"]
[Termination "Love_craft won by resignation"]

1. Nf3 {[%clk 0:03:00.9]} 1... Nf6 {[%clk 0:02:54.3]} 2. g3 {[%clk 0:03:01.1]}
2... g6 {[%clk 0:02:55.2]} 3. Bg2 {[%clk 0:03:02]} 3... Bg7 {[%clk 0:02:56.1]}
4. O-O {[%clk 0:03:02.8]} 4... O-O {[%clk 0:02:57]} 5. d4 {[%clk 0:03:03.7]}
5... d6 {[%clk 0:02:57.9]} 6. c4 {[%clk 0:03:04.1]} 6... c6 {[%clk 0:02:58.4]}
7. Nc3 {[%clk 0:03:04.2]} 7... Qb6 {[%clk 0:02:58.7]} 8. e4 {[%clk 0:03:03.8]}
8... Bg4 {[%clk 0:02:55.6]} 9. h3 {[%clk 0:03:01.4]} 9... Bxf3 {[%clk
0:02:52.7]} 10. Bxf3 {[%clk 0:03:02.3]} 10... Nfd7 {[%clk 0:02:52.6]} 11. Ne2
{[%clk 0:02:50.6]} 11... Qa6 {[%clk 0:02:13.1]} 12. b3 {[%clk 0:02:48.9]} 12...
e5 {[%clk 0:02:11.3]} 13. Bb2 {[%clk 0:02:49.1]} 13... exd4 {[%clk 0:02:09.7]}
14. Bxd4 {[%clk 0:02:47.3]} 14... Nf6 {[%clk 0:01:27.9]} 15. Bb2 {[%clk
0:02:42.3]} 15... Re8 {[%clk 0:01:03.6]} 16. Nf4 {[%clk 0:02:19.1]} 16... Nbd7
{[%clk 0:00:40.5]} 17. Re1 {[%clk 0:02:14.2]} 17... Rad8 {[%clk 0:00:36]} 18.
Qc2 {[%clk 0:02:08.8]} 18... Ne5 {[%clk 0:00:31.4]} 19. Bg2 {[%clk 0:02:08]}
19... Nfd7 {[%clk 0:00:30.4]} 20. Red1 {[%clk 0:01:36.5]} 20... Nc5 {[%clk
0:00:22.6]} 21. Ne2 {[%clk 0:01:36.6]} 21... Qb6 {[%clk 0:00:10.7]} 22. Kh2
{[%clk 0:01:36]} 22... f6 {[%clk 0:00:10.4]} 23. f4 {[%clk 0:01:29.4]} 23... Nf7
{[%clk 0:00:10.7]} 24. Bd4 {[%clk 0:01:29.7]} 24... Qc7 {[%clk 0:00:08.1]} 25.
Nc3 {[%clk 0:01:25.1]} 25... b6 {[%clk 0:00:06.6]} 26. Re1 {[%clk 0:01:23]}
26... Ne6 {[%clk 0:00:06.9]} 27. Bf2 {[%clk 0:01:22.2]} 27... g5 {[%clk
0:00:06]} 28. Be3 {[%clk 0:01:09.9]} 28... gxf4 {[%clk 0:00:05.8]} 29. gxf4
{[%clk 0:01:10.2]} 29... Qe7 {[%clk 0:00:04.9]} 30. Qf2 {[%clk 0:01:07]} 30...
Nc5 {[%clk 0:00:05]} 31. Rg1 {[%clk 0:00:58]} 31... Nh6 {[%clk 0:00:04.7]} 32.
Rad1 {[%clk 0:00:52.9]} 32... Kh8 {[%clk 0:00:04.9]} 33. f5 {[%clk 0:00:48.5]}
33... Qe5+ {[%clk 0:00:04.8]} 34. Kh1 {[%clk 0:00:45.7]} 34... Qxc3 {[%clk
0:00:05.7]} 35. Bd4 {[%clk 0:00:43.9]} 35... Qb4 {[%clk 0:00:05.1]} 36. Qh4
{[%clk 0:00:42.5]} 36... Nd7 {[%clk 0:00:04.6]} 37. Bf3 {[%clk 0:00:35]} 37...
Rg8 {[%clk 0:00:04.7]} 38. Be3 {[%clk 0:00:20.1]} 38... Nf7 {[%clk 0:00:03.8]}
39. Rg6 {[%clk 0:00:16.3]} 39... Nde5 {[%clk 0:00:03.1]} 40. Rxf6 {[%clk
0:00:16.1]} 40... Bxf6 {[%clk 0:00:03.2]} 41. Qxf6+ {[%clk 0:00:17]} 41... Rg7
{[%clk 0:00:03.5]} 42. Rg1 {[%clk 0:00:11.4]} 42... Rg8 {[%clk 0:00:03.5]} 43.
Bh5 {[%clk 0:00:11.9]} 43... Qc3 {[%clk 0:00:02.6]} 44. Bxf7 {[%clk 0:00:10.4]}
44... Qxe3 {[%clk 0:00:02.7]} 45. Rxg7 {[%clk 0:00:07.8]} 45... Rxg7 {[%clk
0:00:03.6]} 46. Qd8+ {[%clk 0:00:07.4]} 1-0

[Event "*** Titled Tuesday Blitz"]
[Site "Chess.com"]
[Date "2021.02.02"]
[Round "3"]
[White "Philosopherrr"]
[Black "motivated_bishop"]
[Result "1-0"]
[WhiteElo "2565"]
[BlackElo "2375"]
[TimeControl "180+1"]
[EndTime "10:31:54 PST"]
[Termination "Philosopherrr won on time"]

1. e4 {[%clk 0:02:33.7]} 1... g6 {[%clk 0:02:57.5]} 2. d4 {[%clk 0:02:33.3]}
2... Bg7 {[%clk 0:02:58]} 3. Nc3 {[%clk 0:02:33.9]} 3... d6 {[%clk 0:02:58.1]}
4. Bg5 {[%clk 0:02:32.8]} 4... a6 {[%clk 0:02:55.8]} 5. a3 {[%clk 0:02:29.4]}
5... b5 {[%clk 0:02:55.4]} 6. Qd2 {[%clk 0:02:28.9]} 6... Bb7 {[%clk 0:02:55.7]}
7. h4 {[%clk 0:02:28]} 7... Nf6 {[%clk 0:02:50.4]} 8. f3 {[%clk 0:02:26.9]} 8...
Nbd7 {[%clk 0:02:50.2]} 9. d5 {[%clk 0:02:24.9]} 9... c6 {[%clk 0:02:48]} 10.
dxc6 {[%clk 0:02:25]} 10... Bxc6 {[%clk 0:02:48.9]} 11. Nge2 {[%clk 0:02:25.3]}
11... Ne5 {[%clk 0:02:44.6]} 12. Nd4 {[%clk 0:02:25.2]} 12... Bd7 {[%clk
0:02:44.9]} 13. Bh6 {[%clk 0:02:25.6]} 13... Bxh6 {[%clk 0:02:30.6]} 14. Qxh6
{[%clk 0:02:23.8]} 14... Qb6 {[%clk 0:02:30.8]} 15. Qd2 {[%clk 0:02:15]} 15...
h5 {[%clk 0:02:28.5]} 16. Nd1 {[%clk 0:01:59]} 16... O-O {[%clk 0:02:27.4]} 17.
Ne3 {[%clk 0:01:56.2]} 17... Rac8 {[%clk 0:02:02.4]} 18. Be2 {[%clk 0:01:55.9]}
18... Rc7 {[%clk 0:01:54]} 19. c3 {[%clk 0:01:51.2]} 19... e6 {[%clk 0:01:44.6]}
20. O-O {[%clk 0:01:48.6]} 20... d5 {[%clk 0:01:43]} 21. exd5 {[%clk 0:01:46.3]}
21... Nxd5 {[%clk 0:01:42.2]} 22. Nxd5 {[%clk 0:01:46.1]} 22... exd5 {[%clk
0:01:42.6]} 23. f4 {[%clk 0:01:45.3]} 23... Nc4 {[%clk 0:01:25.3]} 24. Bxc4
{[%clk 0:01:39.1]} 24... dxc4 {[%clk 0:01:25.4]} 25. Rf2 {[%clk 0:01:39.5]}
25... Rd8 {[%clk 0:01:18.9]} 26. Re1 {[%clk 0:01:36]} 26... Bf5 {[%clk
0:01:15.3]} 27. Qe3 {[%clk 0:01:29.2]} 27... Qf6 {[%clk 0:01:10.7]} 28. Qe5
{[%clk 0:01:25.8]} 28... Qxe5 {[%clk 0:00:52.9]} 29. Rxe5 {[%clk 0:01:16]} 29...
Bd3 {[%clk 0:00:52.9]} 30. f5 {[%clk 0:01:11.7]} 30... Rcd7 {[%clk 0:00:31.2]}
31. g3 {[%clk 0:01:01.3]} 31... Rd5 {[%clk 0:00:30.9]} 32. Rxd5 {[%clk
0:00:59.8]} 32... Rxd5 {[%clk 0:00:31]} 33. fxg6 {[%clk 0:01:00.5]} 33... fxg6
{[%clk 0:00:30.8]} 34. Rf6 {[%clk 0:01:00.8]} 34... Re5 {[%clk 0:00:26]} 35. Kf2
{[%clk 0:00:57.9]} 35... a5 {[%clk 0:00:19.5]} 36. Rb6 {[%clk 0:00:57.2]} 36...
b4 {[%clk 0:00:13.9]} 37. axb4 {[%clk 0:00:56.8]} 37... axb4 {[%clk 0:00:13.9]}
38. Rxb4 {[%clk 0:00:55.3]} 38... Ra5 {[%clk 0:00:14.3]} 39. Ke3 {[%clk
0:00:53]} 39... Ra1 {[%clk 0:00:12.7]} 40. Rb7 {[%clk 0:00:49.9]} 40... Rg1
{[%clk 0:00:11.4]} 41. Kf4 {[%clk 0:00:35.3]} 41... Rf1+ {[%clk 0:00:11.8]} 42.
Kg5 {[%clk 0:00:33]} 42... Rg1 {[%clk 0:00:11.9]} 43. Kh6 {[%clk 0:00:18.7]}
43... Rxg3 {[%clk 0:00:11.1]} 44. Ne6 {[%clk 0:00:17.8]} 44... Bf5 {[%clk
0:00:07.2]} 45. Ng5 {[%clk 0:00:16.5]} 45... Kf8 {[%clk 0:00:02.6]} 46. Rc7
{[%clk 0:00:16.9]} 46... Ke8 {[%clk 0:00:02.1]} 47. Rxc4 {[%clk 0:00:16.1]}
47... Rg4 {[%clk 0:00:02]} 48. Rd4 {[%clk 0:00:14.1]} 1-0

[Event "*** Titled Tuesday Blitz"]
[Site "Chess.com"]
[Date "2021.02.02"]
[Round "3"]
[White "Gmedmundo"]
[Black "mirochka"]
[Result "1-0"]
[WhiteElo "2392"]
[BlackElo "2193"]
[TimeControl "180+1"]
[EndTime "10:31:54 PST"]
[Termination "Gmedmundo won on time"]

1. e4 {[%clk 0:03:00.9]} 1... c5 {[%clk 0:02:59.1]} 2. Nf3 {[%clk 0:03:00.1]}
2... Nc6 {[%clk 0:02:59.4]} 3. Bb5 {[%clk 0:02:58.5]} 3... e6 {[%clk 0:02:55.8]}
4. Bxc6 {[%clk 0:02:55.3]} 4... bxc6 {[%clk 0:02:55.7]} 5. b3 {[%clk 0:02:55.1]}
5... Ne7 {[%clk 0:02:53.9]} 6. O-O {[%clk 0:02:51]} 6... Ng6 {[%clk 0:02:53.3]}
7. Bb2 {[%clk 0:02:48.2]} 7... Qc7 {[%clk 0:02:30.9]} 8. e5 {[%clk 0:02:44.5]}
8... Be7 {[%clk 0:02:29.8]} 9. d3 {[%clk 0:02:40.7]} 9... O-O {[%clk 0:02:25.1]}
10. Nbd2 {[%clk 0:02:37]} 10... f6 {[%clk 0:02:24.7]} 11. Qe1 {[%clk 0:02:27.9]}
11... fxe5 {[%clk 0:02:14.1]} 12. Nxe5 {[%clk 0:02:26.6]} 12... Nxe5 {[%clk
0:02:05.2]} 13. Bxe5 {[%clk 0:02:22]} 13... d6 {[%clk 0:01:59.6]} 14. Bg3 {[%clk
0:02:14.4]} 14... Bf6 {[%clk 0:01:04.6]} 15. Ne4 {[%clk 0:02:12.2]} 15... e5
{[%clk 0:00:58.2]} 16. f4 {[%clk 0:02:03.3]} 16... exf4 {[%clk 0:00:51]} 17.
Nxf6+ {[%clk 0:02:01.9]} 17... Rxf6 {[%clk 0:00:47.5]} 18. Rxf4 {[%clk
0:01:50.8]} 18... Bf5 {[%clk 0:00:28.3]} 19. Qe3 {[%clk 0:01:26.3]} 19... Raf8
{[%clk 0:00:27.1]} 20. Raf1 {[%clk 0:01:17.9]} 20... Qd7 {[%clk 0:00:26.2]} 21.
h3 {[%clk 0:01:12.4]} 21... R6f7 {[%clk 0:00:25.6]} 22. Kh2 {[%clk 0:01:07.6]}
22... h6 {[%clk 0:00:25.3]} 23. R4f3 {[%clk 0:01:04.5]} 23... Bg6 {[%clk
0:00:20.5]} 24. Rxf7 {[%clk 0:00:58.2]} 24... Rxf7 {[%clk 0:00:20.5]} 25. Re1
{[%clk 0:00:56.9]} 25... Rf8 {[%clk 0:00:19.4]} 26. Qe7 {[%clk 0:00:51.8]} 26...
Rf7 {[%clk 0:00:16]} 27. Qh4 {[%clk 0:00:43.1]} 27... Kh7 {[%clk 0:00:15.2]} 28.
a4 {[%clk 0:00:32]} 28... d5 {[%clk 0:00:15.4]} 29. Re5 {[%clk 0:00:29]} 29...
c4 {[%clk 0:00:14.3]} 30. dxc4 {[%clk 0:00:28.3]} 30... Bxc2 {[%clk 0:00:12.8]}
31. cxd5 {[%clk 0:00:25.1]} 31... Bxb3 {[%clk 0:00:12.4]} 32. d6 {[%clk
0:00:22.2]} 32... Bc2 {[%clk 0:00:10.1]} 33. Qd4 {[%clk 0:00:21.4]} 33... Bf5
{[%clk 0:00:09.6]} 34. Bh4 {[%clk 0:00:19.8]} 34... Be6 {[%clk 0:00:08.2]} 35.
Qe4+ {[%clk 0:00:17]} 35... Bf5 {[%clk 0:00:06.1]} 36. Qd4 {[%clk 0:00:15.9]}
36... Be6 {[%clk 0:00:05.1]} 37. Be7 {[%clk 0:00:14.3]} 37... Bf5 {[%clk
0:00:05.2]} 38. Re2 {[%clk 0:00:12.5]} 38... Be6 {[%clk 0:00:04.8]} 39. Qe5
{[%clk 0:00:12.3]} 39... Bf5 {[%clk 0:00:05.1]} 40. Rf2 {[%clk 0:00:11.8]} 40...
Bg6 {[%clk 0:00:04.3]} 41. Rd2 {[%clk 0:00:08.8]} 41... Bf5 {[%clk 0:00:04.3]}
42. h4 {[%clk 0:00:08.7]} 42... Be6 {[%clk 0:00:04.4]} 43. h5 {[%clk 0:00:08.4]}
43... Bf5 {[%clk 0:00:04.2]} 44. Rf2 {[%clk 0:00:08.1]} 44... Be6 {[%clk
0:00:02.3]} 45. Qe4+ {[%clk 0:00:07.9]} 45... Bf5 {[%clk 0:00:02]} 46. Qf4
{[%clk 0:00:06.4]} 1-0

[Event "*** Titled Tuesday Blitz"]
[Site "Chess.com"]
[Date "2021.02.02"]
[Round "3"]
[White "woodhy"]
[Black "Azerichess"]
[Result "0-1"]
[WhiteElo "2473"]
[BlackElo "2994"]
[TimeControl "180+1"]
[EndTime "10:31:55 PST"]
[Termination "Azerichess won by resignation"]

1. e4 {[%clk 0:02:59.7]} 1... d5 {[%clk 0:02:56.3]} 2. exd5 {[%clk 0:02:58.6]}
2... Qxd5 {[%clk 0:02:57.2]} 3. Nc3 {[%clk 0:02:59.3]} 3... Qa5 {[%clk
0:02:57.1]} 4. d4 {[%clk 0:02:58.6]} 4... Nf6 {[%clk 0:02:57.6]} 5. Bc4 {[%clk
0:02:58.6]} 5... Bf5 {[%clk 0:02:55.8]} 6. Ne2 {[%clk 0:02:55.2]} 6... e6 {[%clk
0:02:55.1]} 7. O-O {[%clk 0:02:55.1]} 7... Nc6 {[%clk 0:02:46.2]} 8. a3 {[%clk
0:02:49.6]} 8... O-O-O {[%clk 0:02:27.7]} 9. Be3 {[%clk 0:02:49.1]} 9... Bg6
{[%clk 0:02:06]} 10. b4 {[%clk 0:02:40.9]} 10... Qh5 {[%clk 0:02:01.8]} 11. Nf4
{[%clk 0:02:39.2]} 11... Qxd1 {[%clk 0:02:00.2]} 12. Rfxd1 {[%clk 0:02:40.1]}
12... Bxc2 {[%clk 0:01:59.3]} 13. Rdc1 {[%clk 0:02:28.8]} 13... Nxd4 {[%clk
0:01:54.7]} 14. Nxe6 {[%clk 0:01:57]} 14... Nxe6 {[%clk 0:01:42.5]} 15. Bxe6+
{[%clk 0:01:50.5]} 15... fxe6 {[%clk 0:01:41.9]} 16. Rxc2 {[%clk 0:01:51.4]}
16... a6 {[%clk 0:01:31.7]} 17. Kf1 {[%clk 0:01:27]} 17... Bd6 {[%clk
0:01:28.7]} 18. h3 {[%clk 0:01:24.4]} 18... Nd5 {[%clk 0:01:28.7]} 19. Bd4
{[%clk 0:01:19.7]} 19... e5 {[%clk 0:01:16.2]} 20. Nxd5 {[%clk 0:01:03.7]} 20...
exd4 {[%clk 0:01:17.1]} 21. Rd1 {[%clk 0:01:03.5]} 21... Be5 {[%clk 0:00:53.7]}
22. Nb6+ {[%clk 0:00:20.7]} 22... Kb8 {[%clk 0:00:51.3]} 23. Na4 {[%clk
0:00:20.9]} 23... Rhe8 {[%clk 0:00:42.7]} 24. Nc5 {[%clk 0:00:20.7]} 24... Bf6
{[%clk 0:00:41.9]} 25. Nd3 {[%clk 0:00:21.6]} 25... b6 {[%clk 0:00:40.2]} 26.
Rdc1 {[%clk 0:00:21.6]} 26... Rd7 {[%clk 0:00:39.9]} 27. Nf4 {[%clk 0:00:20.2]}
27... Kb7 {[%clk 0:00:39.4]} 28. Nd3 {[%clk 0:00:20.2]} 28... Ra8 {[%clk
0:00:39]} 29. Rc6 {[%clk 0:00:20.1]} 29... a5 {[%clk 0:00:39]} 30. b5 {[%clk
0:00:19.4]} 30... a4 {[%clk 0:00:39.2]} 31. R6c4 {[%clk 0:00:18.4]} 31... Ra5
{[%clk 0:00:38]} 32. Rb1 {[%clk 0:00:18.7]} 32... Rd5 {[%clk 0:00:31.4]} 33.
Rbc1 {[%clk 0:00:17.1]} 33... Rd7 {[%clk 0:00:31.4]} 34. Rb1 {[%clk 0:00:16.3]}
34... g6 {[%clk 0:00:27]} 35. Ke2 {[%clk 0:00:15.7]} 35... Bg7 {[%clk
0:00:26.9]} 36. Kd1 {[%clk 0:00:15.8]} 36... Bf8 {[%clk 0:00:18.5]} 37. Nb2
{[%clk 0:00:08.4]} 37... Rxb5 {[%clk 0:00:17.2]} 38. Rxa4 {[%clk 0:00:08.6]}
38... d3 {[%clk 0:00:17.2]} 39. Rb4 {[%clk 0:00:07.8]} 39... Bxb4 {[%clk
0:00:16.2]} 40. axb4 {[%clk 0:00:08.1]} 40... Rxb4 {[%clk 0:00:16.9]} 41. Kd2
{[%clk 0:00:08.6]} 41... c5 {[%clk 0:00:16.9]} 42. Kc3 {[%clk 0:00:09]} 42... d2
{[%clk 0:00:17.3]} 43. Rd1 {[%clk 0:00:09.1]} 43... Kc6 {[%clk 0:00:15.4]} 44.
Nc4 {[%clk 0:00:09.4]} 44... Rxc4+ {[%clk 0:00:15.6]} 45. Kxc4 {[%clk
0:00:09.6]} 45... b5+ {[%clk 0:00:15.7]} 46. Kc3 {[%clk 0:00:10.5]} 46... b4+
{[%clk 0:00:16.6]} 47. Kc4 {[%clk 0:00:09.5]} 47... Rd4+ {[%clk 0:00:16]} 48.
Kb3 {[%clk 0:00:10.4]} 48... Kb5 {[%clk 0:00:15.9]} 49. Kc2 {[%clk 0:00:11.3]}
49... c4 {[%clk 0:00:16.1]} 50. Rxd2 {[%clk 0:00:11.5]} 50... b3+ {[%clk
0:00:16.3]} 51. Kc3 {[%clk 0:00:11.7]} 51... Rxd2 {[%clk 0:00:17.2]} 52. Kxd2
{[%clk 0:00:12.6]} 52... Kb4 {[%clk 0:00:18.1]} 53. f4 {[%clk 0:00:12.6]} 53...
c3+ {[%clk 0:00:19]} 54. Kd3 {[%clk 0:00:12.3]} 54... b2 {[%clk 0:00:19]} 55.
Kc2 {[%clk 0:00:11.7]} 55... Ka3 {[%clk 0:00:19.6]} 56. f5 {[%clk 0:00:11.1]}
56... Ka2 {[%clk 0:00:19]} 57. f6 {[%clk 0:00:12]} 57... b1=Q+ {[%clk
0:00:19.3]} 0-1